bitfinex-derivatives/quotes_SOLF0:USTF0_20250202
["timestamp","ask_amount","ask_price","bid_price","bid_amount"]
[1738470031868,0.03153909,209.37,209.33,4.80884901]
[1738470032460,0.03153909,209.37,209.35,4.7782]
[1738470032859,0.03153909,209.37,209.33,0.03034901]
[1738470033069,0.03153909,209.37,209.33,4.80894901]
[1738470033362,0.03153909,209.37,209.33,0.03034901]
[1738470034365,0.03153909,209.37,209.35,4.7783]
[1738470034561,0.03153909,209.37,209.33,0.03034901]
[1738470035559,4.7785,209.34,209.33,0.03034901]
[1738470035861,25.68487503,209.3,209.16,2.8097]
[1738470036060,25.68487503,209.3,209.11,2.7693]
[1738470036263,4.7814,209.22,209.14,4.7829]
[1738470036464,25.68487503,209.3,209.12,3.64972]
[1738470036658,4.7792,209.31,209.24,4.7808]
[1738470036863,0.03095224,209.23,209.19,0.03309535]
[1738470037059,5.4682,209.36,209.19,0.03309535]
[1738470037265,4.7793,209.31,209.18,25.68487503]
[1738470037465,5.4682,209.36,209.19,3.64982639]
[1738470037766,0.84814262,209.35,209.19,3.64982639]
[1738470037967,25.68487503,209.28,209.11,2.7693]
[1738470038167,25.68487503,209.23,209.03,2.6107]
[1738470038371,2.70235135,209.22,209.03,2.6107]
[1738470038568,4.7826,209.17,209.03,2.6107]
[1738470038864,4.7826,209.17,209.04,25.68487503]
[1738470039067,25.68487503,209.19,209.02,2.7693]
[1738470039367,25.68487503,209.19,209.04,3.65286144]
[1738470039563,4.783,209.15,209.04,3.65286144]
[1738470039768,0.03259421,209.13,209.08,0.0328726]
[1738470041764,0.03259421,209.13,209.08,4.8172726]
[1738470042066,25.68487503,209.31,209.12,25.68487503]
[1738470042264,0.84790544,209.3,209.16,25.68487503]
[1738470042467,4.7791,209.32,209.21,4.7815]
[1738470042666,0.84807152,209.34,209.24,25.68487503]
[1738470042863,8.3259,209.39,209.24,25.68487503]
[1738470043259,0.03377887,209.34,209.29,0.03416754]
[1738470043760,8.3259,209.39,209.26,4.7802]
[1738470043965,8.3259,209.39,209.29,0.03528461]
[1738470043966,0.03046528,209.34,209.29,0.03528461]
[1738470044170,0.03046528,209.34,209.3,4.7794]
[1738470044366,0.03046528,209.34,209.29,25.72015964]
[1738470044869,0.03046528,209.34,209.29,0.03528461]
[1738470046071,5.2706,209.48,209.29,0.03528461]
[1738470046271,0.84944736,209.47,209.32,25.68487503]
[1738470046569,5.2706,209.48,209.32,25.68487503]
[1738470046770,4.7766,209.43,209.34,4.7785]
[1738470047269,0.03273165,209.41,209.36,0.03255848]
[1738470050664,4.7777,209.38,209.36,0.03255848]
[1738470051071,5.60673165,209.41,209.25,2.7571]
[1738470051272,25.68487503,209.38,209.2,25.68487503]
[1738470051473,25.68487503,209.38,209.2,28.37367503]
[1738470051875,4.7788,209.33,209.2,28.37367503]
[1738470052077,25.68487503,209.38,209.21,3.65429035]
[1738470052275,0.03009192,209.29,209.24,0.03566542]
[1738470052576,0.03009192,209.29,209.21,3.65429035]
[1738470052776,0.03009192,209.29,209.24,0.03629654]
[1738470052978,4.78,209.28,209.24,0.03629654]
[1738470053275,0.03009192,209.29,209.24,0.03629654]
[1738470054367,4.7802,209.27,209.24,0.03629654]
[1738470054567,0.03009192,209.29,209.24,0.03629654]
[1738470054873,4.7817,209.21,209.14,4.7831]
[1738470055074,0.03009192,209.29,209.13,2.8024]
[1738470055275,25.68487503,209.3,209.14,3.65844975]
[1738470055477,4.7807,209.25,209.17,4.7822]
[1738470055774,25.68487503,209.26,209.14,3.65844975]
[1738470055970,25.68487503,209.26,209.11,5.452]
[1738470055971,0.03582947,209.23,209.19,0.03482364]
[1738470056872,4.81692947,209.23,209.19,0.03482364]
[1738470058869,4.7817,209.2,209.19,0.03482364]
[1738470059479,4.7815,209.21,209.19,0.03482364]
[1738470060376,4.7817,209.2,209.19,0.03482364]
[1738470061578,4.7822,209.18,209.08,94.66]
[1738470061771,25.68487503,209.22,209.09,4.7842]
[1738470061970,25.68487503,209.22,209.01,2.712]
[1738470061971,25.68487503,209.18,209.01,2.712]
[1738470062173,25.68487503,209.14,209.01,2.712]
[1738470062371,25.68487503,209.14,209.03,4.7856]
[1738470062777,5.4977,209.17,209.06,0.0333202]
[1738470062778,0.03580806,209.11,209.06,0.0333202]
[1738470062973,0.03580806,209.11,209.09,4.7842]
[1738470063178,4.7815,209.22,209.09,25.68487503]
[1738470063374,5.4602,209.27,209.1,2.7443]
[1738470063580,0.8532075,209.26,209.1,2.7443]
[1738470064086,25.68487503,209.21,209.01,28.39687503]
[1738470064279,0.8532075,209.2,209.05,25.68487503]
[1738470064474,25.68487503,209.25,209.09,25.68487503]
[1738470064675,5.4602,209.27,209.15,4.7827]
[1738470064882,0.03011223,209.2,209.09,25.68487503]
[1738470065077,0.03011223,209.2,209.13,25.68487503]
[1738470065276,0.03011223,209.2,209.19,0.03662469]
[1738470065474,2.5843,209.28,209.14,5.367]
[1738470065682,0.03142451,209.22,209.17,0.03089996]
[1738470066082,0.03142451,209.22,209.19,4.7818]
[1738470067182,2.6662,209.35,209.17,25.71577499]
[1738470067387,0.85164047,209.34,209.17,25.71577499]
[1738470067582,0.85164047,209.34,209.17,25.68487503]
[1738470067783,4.7792,209.32,209.17,25.68487503]
[1738470067984,2.6612,209.37,209.25,25.68487503]
[1738470068379,0.03432587,209.33,209.29,0.03637793]
[1738470069788,0.03432587,209.33,209.17,29.38487503]
[1738470069988,28.42927503,209.36,209.17,29.38487503]
[1738470070489,2.7444,209.36,209.21,25.68487503]
[1738470070695,2.7444,209.36,209.3,4.7794]
[1738470070989,0.03029053,209.31,209.3,4.7794]
[1738470071386,0.03029053,209.31,209.28,0.03428326]
[1738470072589,0.03029053,209.31,209.29,4.7796]
[1738470074392,0.03029053,209.31,209.3,4.7795]
[1738470074986,5.4963,209.45,209.3,15.78472392]
[1738470075593,5.4963,209.45,209.26,15.78472392]
[1738470075988,5.4963,209.45,209.3,15.78472392]
[1738470076193,0.03104836,209.38,209.33,0.03197734]
[1738470076893,0.03104836,209.38,209.34,15.78472392]
[1738470077197,2.8109,209.51,209.47,4.7755]
[1738470077497,8.2338,209.58,209.42,15.78472392]
[1738470077900,8.2338,209.58,209.46,15.78472392]
[1738470078089,78.23956934,209.69,209.46,15.78472392]
[1738470078294,0.03253869,209.54,209.51,4.7746]
[1738470078494,0.03253869,209.54,209.5,0.0338837]
[1738470078692,2.8239,209.65,209.46,15.78472392]
[1738470078896,0.03352894,209.54,209.5,0.03237384]
[1738470079299,2.8239,209.65,209.55,4.7736]
[1738470079496,0.0333492,209.54,209.5,15.8156135]
[1738470079805,2.8239,209.65,209.5,15.78472392]
[1738470080002,0.03209121,209.54,209.5,15.81651642]
[1738470080303,0.0311228,209.54,209.52,4.7743]
[1738470082399,2.28e-05,209.54,209.52,4.7743]
[1738470083597,2.8239,209.65,209.5,31.6022344]
[1738470083803,2.8239,209.65,209.55,15.78472392]
[1738470084303,197.7,209.74,209.55,15.78472392]
[1738470084304,4.7699,209.72,209.55,15.78472392]
[1738470084504,8.1085,209.73,209.55,15.78472392]
[1738470084697,12.8783,209.73,209.59,15.78472392]
[1738470084904,0.03649997,209.66,209.61,0.03201909]
[1738470085404,0.03649997,209.66,209.65,4.7714]
[1738470087910,0.03649997,209.66,209.61,0.03201909]
[1738470090313,0.03649997,209.66,209.62,15.78472392]
[1738470090514,0.03649997,209.66,209.64,4.7717]
[1738470090716,5.4152,209.79,209.62,15.78472392]
[1738470091008,8.1505,209.79,209.68,15.78472392]
[1738470091210,8.1505,209.79,209.72,15.78472392]
[1738470091407,3.7,209.88,209.72,15.78472392]
[1738470091613,4.7674,209.83,209.75,4.769]
[1738470091814,4.7674,209.83,209.72,15.78472392]
[1738470092003,0.03391665,209.81,209.77,0.0348197]
[1738470092608,15.81864057,209.81,209.67,4.7708]
[1738470092806,0.03391665,209.81,209.68,15.78472392]
[1738470093011,0.85207859,209.84,209.68,15.78472392]
[1738470093211,8.1505,209.87,209.72,15.78472392]
[1738470093815,8.1505,209.87,209.77,0.03160685]
[1738470093816,0.03438999,209.82,209.77,0.03160685]
[1738470096712,0.03438999,209.82,209.68,15.78472392]
[1738470096908,0.853017,209.86,209.68,15.78472392]
[1738470097113,4.7679,209.81,209.7,4.7702]
[1738470097316,8.1505,209.87,209.68,15.78472392]
[1738470097615,0.85304634,209.86,209.68,15.78472392]
[1738470097814,15.78472392,209.83,209.64,15.78472392]
[1738470098015,0.03472817,209.79,209.75,0.03537913]
[1738470098316,4.80302817,209.79,209.72,4.7697]
[1738470098617,23.93522392,209.87,209.68,15.78472392]
[1738470098819,0.85369909,209.86,209.68,15.78472392]
[1738470099014,4.7683,209.79,209.68,15.78472392]
[1738470099215,23.93522392,209.87,209.68,15.78472392]
[1738470099414,0.03606596,209.76,209.71,0.0357258]
[1738470099620,0.03606596,209.76,209.68,15.78472392]
[1738470099820,23.93522392,209.87,209.71,0.03535735]
[1738470100014,0.03018144,209.74,209.68,15.78472392]
[1738470100210,15.78472392,209.83,209.68,15.78472392]
[1738470100211,4.7688,209.77,209.68,15.78472392]
[1738470100416,0.03402672,209.73,209.68,15.78472392]
[1738470100717,15.78472392,209.83,209.7,0.03034318]
[1738470100914,0.03661086,209.73,209.64,15.78472392]
[1738470101123,15.78472392,209.79,209.74,0.03651485]
[1738470101418,3.7,209.82,209.64,15.78472392]
[1738470101620,0.85313342,209.81,209.64,15.78472392]
[1738470102219,194.0,209.86,209.64,15.78472392]
[1738470102419,0.03209057,209.75,209.7,0.03593951]
[1738470102721,23.93522392,209.87,209.72,15.78472392]
[1738470102921,0.03098606,209.75,209.72,15.78472392]
[1738470103122,0.85284271,209.86,209.68,15.78472392]
[1738470103319,0.03272292,209.76,209.71,0.0348576]
[1738470103822,0.85241035,209.85,209.68,15.78472392]
[1738470104024,0.03425779,209.76,209.74,4.7692]
[1738470104523,0.03674075,209.77,209.74,4.7692]
[1738470104925,0.85178882,209.86,209.68,15.78472392]
[1738470105225,0.03673526,209.78,209.73,0.03323865]
[1738470105721,0.03673526,209.78,209.73,0.03038391]
[1738470106018,0.03673526,209.78,209.77,4.7687]
[1738470108629,2.7353,209.87,209.76,15.78472392]
[1738470109829,0.03166589,209.84,209.79,0.0331868]
[1738470110031,0.03166589,209.84,209.8,15.78472392]
[1738470110628,0.03166589,209.84,209.83,4.7673]
[1738470110824,2.8444,209.94,209.8,31.56944784]
[1738470111026,2.8444,209.94,209.86,15.78472392]
[1738470111221,2.8444,209.94,209.8,15.78472392]
[1738470111728,15.78472392,210.0,209.8,15.78472392]
[1738470111929,15.78472392,210.0,209.74,5.3647]
[1738470111930,7.556e-05,209.89,209.85,0.03070268]
[1738470112132,2.7757,209.99,209.88,15.78472392]
[1738470112325,2.7757,209.99,209.93,4.765]
[1738470112531,2.7757,209.99,209.88,15.78472392]
[1738470113228,0.03579749,209.96,209.85,2.7628]
[1738470113427,0.03579749,209.96,209.91,0.03382214]
[1738470113630,4.7647,209.95,209.91,0.03382214]
[1738470113837,0.03579749,209.96,209.91,0.03382214]
[1738470115033,0.03579749,209.96,209.92,4.7653]
[1738470115228,0.03579749,209.96,209.91,0.03382214]
[1738470116136,0.03579749,209.96,209.93,4.765]
[1738470116436,0.03579749,209.96,209.91,0.03382214]
[1738470116736,4.765,209.94,209.91,0.03382214]
[1738470116936,0.03579749,209.96,209.91,0.03382214]
[1738470117433,0.03579749,209.96,209.83,131.46037284]
[1738470117633,5.39529749,209.96,209.82,24.8374093]
[1738470117834,4.7656,209.91,209.84,4.7671]
[1738470118234,5.3595,209.96,209.82,24.8374093]
[1738470118531,4.7663,209.88,209.82,29.6048093]
[1738470118736,4.7663,209.88,209.87,0.03207734]
[1738470118936,0.03094239,209.91,209.87,0.03207734]
[1738470121137,0.03094239,209.91,209.89,4.766]
[1738470121336,0.03094239,209.91,209.87,0.03207734]
[1738470121839,0.03094239,209.91,209.88,15.78472392]
[1738470122033,3.68,210.07,209.88,15.78472392]
[1738470122238,4.7635,210.01,209.88,15.78472392]
[1738470122435,4.7635,210.01,209.89,3.62218713]
[1738470122942,4.7636,210.0,209.93,4.7649]
[1738470123336,0.03402659,209.97,209.93,0.03411078]
[1738470125935,0.03402659,209.97,209.93,4.79901078]
[1738470126140,0.03402659,209.97,209.93,0.03411078]
[1738470126639,3.68,210.16,209.96,15.78472392]
[1738470127042,4.7615,210.1,210.03,4.7628]
[1738470127340,3.68,210.18,210.0,15.78472392]
[1738470127539,2.7641,210.15,210.0,15.78472392]
[1738470127841,0.03668368,210.11,210.07,0.03602197]
[1738470128141,4.7613,210.1,210.07,0.03602197]
[1738470128538,0.03668368,210.11,210.07,0.03602197]
[1738470129142,0.03668368,210.11,210.07,4.79772197]
[1738470129342,0.03668368,210.11,210.07,0.03602197]
[1738470130444,4.7616,210.09,210.07,0.03602197]
[1738470131138,0.03668368,210.11,209.95,2.7938]
[1738470131443,2.8073,210.08,209.92,15.78472392]
[1738470131638,0.85378725,210.07,209.97,4.7641]
[1738470131839,2.8073,210.08,209.92,15.78472392]
[1738470131840,4.7623,210.06,209.92,15.78472392]
[1738470132141,2.8073,210.08,209.92,15.78472392]
[1738470132445,0.03003491,210.01,209.97,0.03547997]
[1738470133342,4.7638,209.99,209.97,0.03547997]
[1738470133537,0.03003491,210.01,209.84,147.24509676]
[1738470133741,2.6004,210.05,209.84,147.24509676]
[1738470133742,15.78472392,209.99,209.84,131.46037284]
[1738470133937,4.7661,209.89,209.84,131.46037284]
[1738470134143,19.46472392,209.99,209.84,131.46037284]
[1738470134345,7.4602,209.97,209.87,4.7663]
[1738470134543,7.4602,209.97,209.84,147.24509676]
[1738470134839,0.03125478,209.94,209.9,0.03210892]
[1738470135046,0.03125478,209.94,209.92,4.7653]
[1738470136444,0.03125478,209.94,209.9,0.03210892]
[1738470137244,4.7655,209.92,209.9,0.03210892]
[1738470137743,0.03125478,209.94,209.9,0.03210892]
[1738470141048,4.79625478,209.94,209.9,0.03210892]
[1738470141548,0.03125478,209.94,209.9,0.03210892]
[1738470142143,0.03125478,209.94,209.92,4.7652]
[1738470142343,2.6348,210.02,209.92,15.78472392]
[1738470142843,2.6348,210.02,209.95,4.7647]
[1738470143047,2.6348,210.02,209.92,15.78472392]
[1738470143250,2.6348,210.02,209.93,3.63694493]
[1738470143452,2.6348,210.02,209.95,0.03269127]
[1738470143453,0.03307412,209.99,209.95,0.03269127]
[1738470143750,0.03307412,209.99,209.96,4.7643]
[1738470144644,0.03307412,209.99,209.95,0.03269127]
[1738470144843,0.03307412,209.99,209.82,131.46037284]
[1738470145154,4.7652,209.93,209.86,4.7666]
[1738470145549,2.7016,209.97,209.82,131.46037284]
[1738470145745,4.7663,209.88,209.82,136.22787284]
[1738470145949,4.7663,209.88,209.87,0.03124594]
[1738470146250,4.7661,209.89,209.87,0.03124594]
[1738470146450,0.03006025,209.9,209.87,0.03124594]
[1738470146945,4.7662,209.88,209.87,0.03124594]
[1738470147141,0.03006025,209.9,209.76,15.78472392]
[1738470147346,2.7962,209.93,209.76,15.78472392]
[1738470147546,2.7962,209.93,209.77,3.64837871]
[1738470147748,4.7661,209.89,209.83,4.7674]
[1738470148149,4.7657,209.91,209.84,4.7671]
[1738470148351,0.03215641,209.88,209.84,15.81502792]
[1738470148551,2.6372,210.01,209.84,15.78472392]
[1738470148751,2.6372,210.01,209.96,4.7644]
[1738470148951,2.6372,210.01,209.88,15.78472392]
[1738470149155,2.6372,210.01,209.89,3.64981026]
[1738470149352,4.7636,210.0,209.89,3.64981026]
[1738470149661,0.03338913,209.97,209.92,0.0321254]
[1738470150358,15.78472392,210.15,209.96,15.78472392]
[1738470150551,5.4875,210.14,209.96,15.78472392]
[1738470150858,5.4875,210.14,209.97,6.27231026]
[1738470151058,4.7618,210.08,210.0,4.7635]
[1738470151359,5.4875,210.14,209.98,3.64981026]
[1738470151657,0.03191339,210.06,210.02,0.03151321]
[1738470152459,0.03191339,210.06,210.02,4.79441321]
[1738470152661,0.03191339,210.06,210.02,0.03151321]
[1738470153562,0.03191339,210.06,210.04,4.7626]
[1738470153952,0.03191339,210.06,210.02,0.03151321]
[1738470154159,0.03191339,210.06,210.02,4.79451321]
[1738470154860,0.03191339,210.06,210.02,0.03151321]
[1738470155253,4.79411339,210.06,210.02,0.03151321]
[1738470155553,15.78472392,210.2,210.03,15.78472392]
[1738470155962,15.78472392,210.2,210.03,19.43883348]
[1738470156161,15.78472392,210.2,210.04,3.65410956]
[1738470156762,0.03439807,210.14,210.1,0.03659958]
[1738470157464,0.03439807,210.14,210.1,4.79779958]
[1738470157669,0.03439807,210.14,210.1,0.03659958]
[1738470158057,0.03439807,210.14,210.12,4.7607]
[1738470160859,0.03439807,210.14,210.1,0.03659958]
[1738470162064,4.7608,210.12,210.1,0.03659958]
[1738470162461,4.7609,210.12,210.1,0.03659958]
[1738470163268,0.03439807,210.14,210.1,0.03659958]
[1738470163470,4.761,210.11,210.1,0.03659958]
[1738470164766,4.7621,210.07,209.95,15.78472392]
[1738470165068,15.78472392,210.13,209.94,5.5365]
[1738470165265,4.762,210.07,209.94,5.5365]
[1738470165466,4.762,210.07,209.95,3.64333581]
[1738470165970,0.03103268,210.03,210.0,4.7635]
[1738470166668,0.03103268,210.03,209.99,0.03474009]
[1738470167866,0.03103268,210.03,209.99,4.79844009]
[1738470168674,15.78472392,210.21,210.02,15.78472392]
[1738470168873,18.59122392,210.21,210.03,2.8009]
[1738470169173,0.85309568,210.15,210.03,2.8009]
[1738470169373,0.85309568,210.15,209.98,15.78472392]
[1738470169673,15.78472392,210.2,209.99,2.6499]
[1738470169865,0.03038263,210.09,210.04,0.03347213]
[1738470170574,0.03038263,210.09,210.05,4.7624]
[1738470171973,0.03038263,210.09,210.04,0.03347213]
[1738470172476,0.03038263,210.09,210.08,4.7617]
[1738470173373,7.525,210.2,210.1,4.7612]
[1738470173566,2.7658,210.2,210.06,15.78472392]
[1738470173977,4.7596,210.18,210.1,4.7612]
[1738470174175,4.7596,210.18,210.06,15.78472392]
[1738470174574,0.03054355,210.14,210.1,0.03167977]
[1738470176177,0.03054355,210.14,210.13,4.7606]
[1738470178079,0.03054355,210.14,210.1,0.03167977]
[1738470178768,0.03054355,210.14,210.11,4.761]
[1738470178975,0.03054355,210.14,210.1,0.03167977]
[1738470180174,0.03054355,210.14,210.13,4.7606]
[1738470182281,0.03054355,210.14,210.11,4.7608]
[1738470182479,0.03054355,210.14,210.1,0.03167977]
[1738470183281,0.03054355,210.14,210.11,4.761]
[1738470183680,0.03054355,210.14,210.1,0.03167977]
[1738470184180,0.03054355,210.14,210.13,4.7606]
[1738470185176,5.186,210.25,210.12,2.6868]
[1738470185478,15.78472392,210.3,210.13,19.42049612]
[1738470185684,15.78472392,210.3,210.2,4.759]
[1738470186090,4.7573,210.28,210.13,15.78472392]
[1738470186483,0.03073917,210.27,210.23,0.0365607]
[1738470186782,15.78472392,210.34,210.17,15.78472392]
[1738470186986,8.1397,210.35,210.17,15.78472392]
[1738470187285,0.03114881,210.27,210.25,4.7578]
[1738470187788,78.23956934,210.44,210.25,15.78472392]
[1738470187985,78.23956934,210.44,210.24,2.8644]
[1738470187986,0.85294249,210.43,210.29,15.78472392]
[1738470188180,0.85294249,210.43,210.33,15.78472392]
[1738470188376,0.03449995,210.37,210.33,15.78472392]
[1738470188677,58.69426934,210.44,210.33,15.78472392]
[1738470188881,58.69426934,210.44,210.4,15.78472392]
[1738470189080,50.38356934,210.44,210.43,4.7538]
[1738470189377,201.66835257,210.47,210.4,31.56944784]
[1738470189578,78.39980164,210.53,210.48,4.7526]
[1738470189784,78.39980164,210.53,210.46,15.78472392]
[1738470190181,69.47851088,210.53,210.51,4.7523]
[1738470190384,53.43481088,210.53,210.51,4.7523]
[1738470190589,45.08001088,210.53,210.51,4.7523]
[1738470190983,16.94901088,210.53,210.51,4.7523]
[1738470191189,9.74841088,210.53,210.51,4.7523]
[1738470191691,9.24e-06,210.53,210.51,4.7523]
[1738470192291,9.24e-06,210.53,210.47,0.03185153]
[1738470192892,15.76473316,210.56,210.48,25.10459045]
[1738470193089,15.78472392,210.56,210.48,3.59669045]
[1738470193293,15.78472392,210.56,210.36,15.78472392]
[1738470193495,15.78472392,210.52,210.36,15.78472392]
[1738470193689,4.7526,210.51,210.36,15.78472392]
[1738470193889,15.78472392,210.48,210.33,129.62945584]
[1738470194390,0.02148159,210.46,210.41,0.03351467]
[1738470194895,4.7544,210.43,210.41,0.03351467]
[1738470195087,15.78472392,210.44,210.33,129.62945584]
[1738470195293,4.7562,210.35,210.33,129.62945584]
[1738470195487,15.78472392,210.36,210.21,164.7977198]
[1738470195686,27.95237756,210.4,210.21,197.50919736]
[1738470195888,3.72,210.42,210.25,27.95237756]
[1738470196291,3.72,210.42,210.29,27.95237756]
[1738470196597,0.03459385,210.36,210.31,0.03543468]
[1738470197000,4.7567,210.33,210.31,0.03543468]
[1738470197391,27.98697141,210.36,210.19,4.7596]
[1738470197592,27.98697141,210.36,210.17,27.95237756]
[1738470197999,27.95237756,210.36,210.18,4.7598]
[1738470198297,27.95237756,210.32,210.17,27.95237756]
[1738470198498,27.95237756,210.32,210.17,32.71237756]
[1738470198698,0.03552012,210.29,210.25,0.03405677]
[1738470202002,27.95237756,210.44,210.25,27.98643433]
[1738470202196,2.6547,210.43,210.29,27.95237756]
[1738470202801,4.7555,210.38,210.27,4.7578]
[1738470203002,27.95237756,210.4,210.22,2.5873]
[1738470203204,2.6547,210.43,210.25,27.95237756]
[1738470203400,0.03461964,210.35,210.3,0.03453581]
[1738470203594,0.03461964,210.35,210.31,4.7569]
[1738470204300,0.03461964,210.35,210.31,4.78995165]
[1738470204706,6.5371,210.45,210.31,0.03305165]
[1738470205107,2.8571,210.45,210.32,30.68362369]
[1738470205300,4.7542,210.44,210.32,30.68362369]
[1738470205505,4.7542,210.44,210.33,129.83190894]
[1738470206106,0.02029117,210.41,210.36,0.03389443]
[1738470208207,0.85301518,210.5,210.37,27.95237756]
[1738470208412,2.8607,210.51,210.37,27.95237756]
[1738470208609,2.8269,210.52,210.37,27.95237756]
[1738470209305,2.8269,210.52,210.38,191.8601832]
[1738470209505,2.8269,210.52,210.42,0.03461463]
[1738470209904,4.7532,210.48,210.42,0.03461463]
[1738470210109,2.8269,210.52,210.42,0.03461463]
[1738470210310,27.95237756,210.46,210.42,0.03461463]
[1738470210509,4.7541,210.44,210.42,0.03461463]
[1738470210705,27.95237756,210.46,210.42,0.03461463]
[1738470211107,4.7541,210.44,210.42,0.03461463]
[1738470211708,4.7539,210.45,210.42,0.03461463]
[1738470211905,27.95237756,210.46,210.42,0.03461463]
[1738470212213,27.95237756,210.5,210.42,0.03461463]
[1738470212411,2.6725,210.51,210.42,0.03461463]
[1738470212813,28.80677094,210.5,210.42,0.03461463]
[1738470213007,27.95237756,210.5,210.42,0.03461463]
[1738470213818,2.6725,210.51,210.42,0.03461463]
[1738470214807,4.7529,210.5,210.42,0.03461463]
[1738470215414,2.6725,210.51,210.42,0.03461463]
[1738470215714,4.7529,210.49,210.43,4.7542]
[1738470216114,4.7534,210.47,210.42,0.03461463]
[1738470216515,2.6725,210.51,210.42,0.03461463]
[1738470216713,4.7536,210.46,210.42,0.03461463]
[1738470216906,2.6725,210.51,210.42,0.03461463]
[1738470217107,27.95237756,210.48,210.42,0.03461463]
[1738470217714,27.95237756,210.48,210.38,129.83190894]
[1738470218217,4.7552,210.39,210.38,129.83190894]
[1738470218711,4.7552,210.39,210.38,113.40040894]
[1738470218908,4.7552,210.39,210.38,100.87390894]
[1738470219511,4.7556,210.37,210.36,0.03563085]
[1738470220119,27.95237756,210.4,210.26,36.78658364]
[1738470220618,27.95237756,210.4,210.25,2.6496]
[1738470221015,4.7557,210.37,210.25,2.6496]
[1738470221222,31.61237756,210.44,210.25,30.60197756]
[1738470221421,0.03139402,210.35,210.3,0.03072525]
[1738470221614,0.03139402,210.35,210.34,4.7563]
[1738470222219,0.03139402,210.35,210.32,4.78737265]
[1738470222419,0.03139402,210.35,210.32,0.03077265]
[1738470222611,27.95237756,210.4,210.32,0.03077265]
[1738470223015,4.7554,210.39,210.32,4.7567]
[1738470223220,27.95237756,210.44,210.27,28.40075392]
[1738470223417,27.95237756,210.44,210.32,4.7567]
[1738470223418,4.7548,210.41,210.32,4.7567]
[1738470223618,4.7548,210.41,210.28,3.61957682]
[1738470223820,4.7548,210.41,210.34,0.0331142]
[1738470223821,0.0331412,210.39,210.34,0.0331142]
[1738470225518,4.7557,210.37,210.34,0.0331142]
[1738470225723,0.0331412,210.39,210.34,0.0331142]
[1738470226018,0.0331412,210.39,210.38,4.7554]
[1738470226619,4.7532,210.48,210.43,4.7542]
[1738470226822,20.85667068,210.5,210.35,8.0361]
[1738470227019,4.754,210.44,210.35,8.0361]
[1738470227219,17.19667068,210.54,210.36,17.19667068]
[1738470227823,17.19667068,210.54,210.43,0.03051679]
[1738470229520,17.19667068,210.58,210.43,0.03051679]
[1738470229716,17.19667068,210.58,210.4,17.19667068]
[1738470229917,17.19667068,210.58,210.52,4.7522]
[1738470230122,17.19667068,210.58,210.4,17.19667068]
[1738470230324,17.19667068,210.58,210.53,0.03114923]
[1738470230518,34.39334136,210.54,210.41,3.63034351]
[1738470230721,17.19667068,210.47,210.41,3.63034351]
[1738470230927,17.19667068,210.47,210.35,131.33432255]
[1738470231623,17.19667068,210.51,210.35,131.33432255]
[1738470231826,0.03626784,210.43,210.35,159.24843938]
[1738470232017,27.91411683,210.54,210.43,4.7542]
[1738470232018,4.7528,210.5,210.43,4.7542]
[1738470232223,27.91411683,210.54,210.35,159.24843938]
[1738470232628,4.7525,210.51,210.4,4.7548]
[1738470232826,27.91411683,210.54,210.35,27.91411683]
[1738470233026,27.91411683,210.54,210.42,0.03480309]
[1738470233227,4.7523,210.52,210.42,0.03480309]
[1738470233424,31.57411683,210.58,210.42,0.03480309]
[1738470233619,0.85513696,210.57,210.4,2.8212]
[1738470233823,27.91411683,210.54,210.48,0.0360364]
[1738470234826,4.7525,210.51,210.48,0.0360364]
[1738470235125,27.91411683,210.54,210.48,0.0360364]
[1738470235326,4.7521,210.53,210.48,0.0360364]
[1738470235519,27.91411683,210.54,210.48,0.0360364]
[1738470236528,4.7527,210.5,210.48,0.0360364]
[1738470238228,32.66601683,210.54,210.48,0.0360364]
[1738470238430,27.91411683,210.54,210.48,0.0360364]
[1738470239026,27.91411683,210.5,210.48,0.0360364]
[1738470239223,27.91411683,210.5,210.34,2.6121]
[1738470239423,32.66791683,210.46,210.4,4.7549]
[1738470239624,27.91411683,210.46,210.34,2.6121]
[1738470239929,3.66,210.58,210.43,4.7541]
[1738470239930,4.753,210.49,210.43,4.7541]
[1738470240131,27.91411683,210.5,210.34,2.6121]
[1738470240528,0.03352601,210.44,210.4,0.0325963]
[1738470240725,27.91411683,210.46,210.34,2.6121]
[1738470240931,0.03249082,210.44,210.4,0.0313258]
[1738470241133,4.7547,210.41,210.4,0.0313258]
[1738470241627,27.91411683,210.42,210.28,2.6102]
[1738470241628,4.7563,210.34,210.28,7.3677]
[1738470241824,27.91411683,210.37,210.28,7.3677]
[1738470242023,27.91411683,210.37,210.28,2.6102]